Cogmind - Beta 15 @@@ ROGUE MODE // 2025.06.08 @ 18:16:05 Player: shockman27 Result: Destroyed by P-70 Sage with Tesla Rifle Performance ------------- Evolutions (6) 3000 Regions Visited (8) 1600 Robots Destroyed (142) 710 Value Destroyed (5246) 5246 Prototype IDs (28) 560 Alien Tech Used (0) 0 Bonus (1994) 1994 TOTAL SCORE: 13110 Bonus ------- High Alert Combat Kills 123 Follower Combat Kills 1381 Registered with UFD 300 Met Optimus in HQ 500 Friendly Fire -310 Cogmind --------- Core Integrity 0/1150 Matter 165/300 Energy 280/325 System Corruption 59% Temperature Cool (0) Movement Rolling (100) Location -4/Factory Parts ------- > --- POWER (2) -------- Antimatter Reactor > --- PROPULSION (6) --- Flexi-carbon Leg Myomer Leg Myomer Leg Compact Wheel Compact Wheel Compact Wheel > --- UTILITY (9) ------ Medium Storage Unit Enhanced Optical Array Advanced Signal Interpreter Improved Weapon Cycler Advanced Reaction Control System EM Shield Hacking Suite Experimental Hacking Suite System Shield > --- WEAPON (2) ------- Cooled Plasma Rifle > --- INVENTORY (10) --- Advanced Transmission Jammer CPS Tube (2) DRS Beacon (Ready) Peak State ------------ > --- POWER ------------ Neutrino Core Light Antimatter Reactor > --- PROPULSION ------- Overtuned Huge Scrapsphere Overtuned Huge Scrapsphere Antigrav System Antigrav System > --- UTILITY ---------- Advanced Cooling System Large Storage Unit Enhanced Optical Array Advanced Signal Interpreter Layered Light Armor Plating Advanced Hacking Suite Experimental Hacking Suite System Shield Improved System Shield > --- WEAPON ----------- Tesla Rifle Compact Tesla Bomb Launcher > --- INVENTORY -------- Improved Ion Engine Micro Fission Core Advanced Sensor Array Improved Reaction Control System Hacking Suite Improved Arc Projector Cooled Plasma Rifle Heavy Phase Cannon Gauss Cannon Grenade Launcher CPS Tube Power Maul DRS Beacon [Rating: 111] Favorites ----------- Power Improved Ion Engine Engine Improved Ion Engine Power Core Micro Nuclear Core Reactor Antimatter Reactor Propulsion Light Treads Treads Light Treads Leg Flexi-carbon Leg Wheel Overtuned Huge Scrapsphere Hover Unit Antigrav System Utility Large Storage Unit Device V3-11A's Pendant Storage Large Storage Unit Processor Improved Signal Interpreter Hackware Improved System Shield Protection Light Armor Plating Weapon Ripper Energy Gun EM Pulse Gun Energy Cannon Heavy Phase Cannon Ballistic Gun Battle Rifle Ballistic Cannon Battle Cannon Launcher Grenade Launcher Special Weapon Multitool Impact Weapon Power Maul Slashing Weapon Ripper Build | -11 -10 -10 -9 -9 -6 -6 -5 -4 ------- Run | Yrd Mat Sub Rec Scr Fac Ext Fac Fac Slots Evolved 12 | . . . . . 8 . 2 2 Power 1 | . . . . . . . 1 . Propulsion 4 | . . . . . 2 . 1 1 Utility 7 | . . . . . 6 . . 1 Weapon . | . . . . . . . . . Parts Attached 148 | 8 11 8 3 5 21 18 39 35 Power 20 | 1 1 . 1 . 2 2 7 6 Engine 7 | 1 1 . 1 . . 1 2 1 Core 10 | . . . . . 2 . 5 3 Reactor 3 | . . . . . . 1 . 2 Propulsion 43 | 2 2 . 2 3 2 6 11 15 Treads 10 | 2 2 . 2 2 2 . . . Leg 16 | . . . . . . 6 4 6 Wheel 9 | . . . . 1 . . 2 6 Hover 8 | . . . . . . . 5 3 Flight . | . . . . . . . . . Utility 48 | 2 4 1 . 2 11 7 9 12 Device 22 | 1 1 1 . . 4 3 5 7 Storage 6 | 1 2 . . 1 1 . . 1 Processor 4 | . . . . . 2 . 2 . Hackware 9 | . . . . . 3 3 1 2 Protection 7 | . 1 . . 1 1 1 1 2 Artifact . | . . . . . . . . . Weapon 37 | 3 4 7 . . 6 3 12 2 Energy Gun 7 | . 2 2 . . . . 2 1 Energy Cannon 1 | . . . . . . . 1 . Ballistic Gun 14 | 3 . 1 . . 4 1 5 . Ballistic Cannon 5 | . . 2 . . 2 . 1 . Launcher 3 | . . 1 . . . 1 . 1 Special Weapon 2 | . 1 . . . . . 1 . Impact Weapon 3 | . 1 . . . . . 2 . Slashing Weapon 2 | . . 1 . . . 1 . . Piercing Weapon . | . . . . . . . . . Special Melee Weapon . | . . . . . . . . . Unidentified Prototypes 7 | . . 1 . . . 2 3 1 Corrupted Parts 4 | . . . . . . . . 4 System Corruption 38 | . . . . . . . . 38 Parts Lost 71 | . 1 3 . . 2 12 20 33 Power 14 | . . . . . . 1 6 7 Propulsion 30 | . . 2 . . . 6 8 14 Utility 16 | . 1 . . . 2 4 2 7 Weapon 11 | . . 1 . . . 1 4 5 Highest Loss Streak 16 | . 1 1 . . 1 4 12 16 To Critical Strikes . | . . . . . . . . . Average Backups 15 | 2 10 13 12 18 15 17 17 9 Power . | . 1 1 1 . . . . . Propulsion 2 | . 2 1 1 4 2 1 3 . Utility 2 | . 2 3 3 4 1 1 2 2 Weapon 7 | 1 4 6 6 7 8 12 8 4 Tool/Special . | . . . . . . . . . Unused Backups 36 | . 5 4 2 1 10 4 6 4 Power 4 | . . . . . 1 2 1 . Propulsion 8 | . 3 . 1 . 2 2 . . Utility 11 | . 2 1 1 . 4 . . 3 Weapon 11 | . . 3 . . 3 . 5 . Tool/Special 2 | . . . . 1 . . . 1 Average Slot Usage (%) 87 | . 97 99 100 72 90 82 86 83 Engine 10 | . 14 14 14 14 1 1 3 2 Core 1 | . . . . . 4 3 5 4 Treads 17 | . 28 27 28 13 25 4 . . Leg 3 | . . . . . . 20 14 6 Wheel 2 | . . . . 7 . . . 2 Hover 1 | . . . . . . . 5 16 Device 6 | . 7 5 14 2 12 10 3 6 Storage 11 | . 14 14 14 13 6 5 5 3 Processor 2 | . . . . . 1 5 9 10 Hackware 5 | . . . . . 16 12 22 19 Protection 4 | . 5 8 . 4 5 4 2 1 Energy Gun 1 | . 12 3 . . . . . 3 Ballistic Gun 6 | . 12 2 13 7 7 6 3 . Ballistic Cannon 2 | . . 7 . . . 3 2 . Launcher 1 | . . 4 . . . . . . Slashing Weapon 6 | . . 9 14 7 4 . . . Peak Build Rating 111 | 7 9 17 18 28 73 96 97 111 Average Rating 37 | 5 8 13 17 22 64 85 86 86 On Entrance 35 | . 7 9 16 18 28 73 80 88 Naked Turns . | . . . . . . . . . Heaviest Build 247 | 13 33 35 33 212 247 77 85 64 Greatest Support 130 | 40 40 40 40 50 86 130 105 130 Greatest Overweight (x) 68 | . . 10 10 68 10 3 17 9 Average Overweight (x) 1 | . . . . 3 . . . . Largest Inventory Capacity 35 | 8 15 15 15 35 35 20 20 15 Average Capacity 18 | 6 12 15 15 24 20 20 19 11 Most Carried 35 | 6 15 15 15 35 35 20 20 15 Average Carried 17 | 2 11 14 14 22 18 19 18 10 Final Capacity 35 | 8 15 15 15 35 20 20 15 10 Final Carried 35 | 6 15 15 15 35 18 20 15 3 Class Distribution -------------------- 34% | Commander-Mutant 30% | Mutant 17% | Hacker-Mutant 8% | Hacker-Scrapper Dominant Class ---------------- Mutant | -10/Materials Mutant | -10/Subcaves Commander-Mutant | -9/Recycling Commander-Mutant | -9/Scraptown Hacker-Scrapper | -6/Factory Hacker-Mutant | -6/Extension Hacker-Mutant | -5/Factory Hacker-Mutant | -4/Factory Resources | -11 -10 -10 -9 -9 -6 -6 -5 -4 ----------- Run | Yrd Mat Sub Rec Scr Fac Ext Fac Fac Matter Collected 5990 | 248 475 857 58 40 955 1286 1409 662 Remotely . | . . . . . . . . . Salvage Created 6722 | 29 679 496 242 . 1244 1301 1972 759 Parts 315 | 4 31 34 11 . 64 71 72 28 Haulers Intercepted 5 | . 2 . . . 1 . 2 . Recyclers Shooed 11 | . 3 . 1 . 1 1 4 1 Parts Field Recycled . | . . . . . . . . . Retrieved Matter . | . . . . . . . . . Parts Self-Destructed 19 | . . 19 . . . . . . Prevented 1 | . . 1 . . . . . . Kills | -11 -10 -10 -9 -9 -6 -6 -5 -4 ------- Run | Yrd Mat Sub Rec Scr Fac Ext Fac Fac Combat Hostiles Destroyed 94 | . 10 12 2 . 13 20 23 14 Melee 3 | . . 1 2 . . . . . Guns 58 | . 9 4 . . 11 12 14 8 Cannons 20 | . . 3 . . . 8 8 1 AOE 10 | . 1 4 . . 2 . . 3 Classes Destroyed 15 | 1 8 1 1 . 3 1 . . Worker 13 | . 2 . . . 7 . 2 2 Builder 4 | . . . . . 1 2 1 . Tunneler 2 | 1 . . . . . . 1 . Hauler 5 | . 2 . . . 1 . 2 . Recycler 15 | . 1 . 2 . 4 2 6 . Operator 4 | . 1 . . . . 1 1 1 Watcher 5 | . 2 . . . 1 2 . . Swarmer 22 | . 3 . . . 3 6 5 5 Grunt 19 | . 6 1 . . 1 4 4 3 Protector 2 | . . . 2 . . . . . Sentry 12 | . . 1 . . 3 4 3 1 Hunter 8 | . . . . . 1 4 1 2 Programmer 19 | . . . . . 5 1 10 3 Behemoth 1 | . . . . . . 1 . . Subdweller 11 | . 1 10 . . . . . . Best Kill Streak 6 | 1 3 2 1 . 5 6 6 4 Combat Bots Only 6 | . 3 2 1 . 3 6 5 3 Max Kills in Single Turn 3 | 1 1 1 1 . 3 2 2 2 Gunslinging 1 | . . . . . . . 1 . Exploded 1 | . 1 1 . . 1 . . 1 Melee 1 | . . 1 1 . . . . . Uniques/NPCs Destroyed . | . . . . . . . . . Combat | -11 -10 -10 -9 -9 -6 -6 -5 -4 -------- Run | Yrd Mat Sub Rec Scr Fac Ext Fac Fac Hostile Shots Fired 1103 | . 63 42 1 . 151 236 250 360 Missed 336 | . 15 13 . . 43 78 71 116 Hits 767 | . 48 29 1 . 108 158 179 244 Melee 1 | . . . . . . 1 . . Projectile 766 | . 48 29 1 . 108 157 179 244 AOE 5 | . . 4 . . 1 . . . Critical Strikes 40 | . 1 . . . 2 2 12 23 Part Disruptions 1 | . . . . . . . 1 . Damage Taken 13266 | . 618 922 12 . 1282 2377 3554 4501 Core 2176 | . 74 169 . . 105 166 509 1153 Absorbed by Shields 210 | . . . . . 58 152 . . Ignored by Resistances 257 | . . . . . . 99 7 151 Regen/Repaired (Parts) 800 | . 185 . . . 277 257 81 . Core Remaining (%) 54 | 100 . . . 2 . 68 49 . Volleys Fired 499 | 4 74 94 6 . 70 91 93 67 Largest 2 | 2 2 2 1 . 2 2 2 2 Hottest 141 | 40 105 93 25 . 84 84 141 90 Shots Fired 816 | 8 136 108 6 . 123 180 180 75 Gun 554 | 8 128 25 6 . 111 110 119 47 Cannon 209 | . . 50 . . 12 70 61 16 Launcher 45 | . . 33 . . . . . 12 Special 8 | . 8 . . . . . . . Kinetic 649 | 8 98 64 6 . 123 180 153 17 Thermal 88 | . 23 1 . . . . 27 37 Explosive 36 | . . 33 . . . . . 3 Electromagnetic 43 | . 15 10 . . . . . 18 Robot Hit Streak 15 | 3 13 15 2 . 14 10 12 11 Robot Miss Streak 6 | 1 5 1 2 . 5 6 2 4 Penetration Max 2 | . . . . . 1 2 1 . Secondary Targets 5 | . 2 . . . 1 . 2 . Max Gunslinging Chain 1 | . 1 . . . 1 . 1 . Shots Hit Robots 499 | 5 82 33 9 . 89 93 136 52 Core Hits 220 | 2 28 17 3 . 33 50 54 33 Critical Kills 8 | . . . . . 2 4 2 . Critical Parts Destroyed 17 | . 1 . . . 3 6 6 1 Critical Strikes 33 | . 1 . . . 7 13 9 3 Burn 1 | . . . . . . . . 1 Destroy 22 | . . . . . 5 11 5 1 Blast 5 | . . . . . 2 2 . 1 Smash 5 | . 1 . . . . . 4 . Melee Attacks 206 | . 5 82 6 . 35 1 49 28 Impact 93 | . 5 11 . . . . 49 28 Slashing 113 | . . 71 6 . 35 1 . . Piercing . | . . . . . . . . . Sneak Attacks 23 | . 3 1 1 . 7 . 10 1 Combat Hostiles . | . . . . . . . . . Follow-up Attacks . | . . . . . . . . . Damage Inflicted 16316 | 52 1227 647 445 . 3335 3665 4488 2457 Guns 8746 | 52 1045 240 75 . 1859 2535 2016 924 Cannons 3119 | . . 146 . . 281 1106 1265 321 Explosions 1910 | . 55 193 . . 573 . . 1089 Melee 2512 | . 124 68 368 . 622 . 1207 123 Ramming 29 | . 3 . 2 . . 24 . . Kinetic 10031 | 52 733 275 75 . 2140 3641 2782 333 Thermal 1720 | . 218 23 . . 195 . 499 785 Explosive 805 | . . 193 . . 378 . . 234 Electromagnetic 1219 | . 149 88 . . . . . 982 Impact 1454 | . 124 . . . . . 1207 123 Slashing 1058 | . . 68 368 . 622 . . . Piercing . | . . . . . . . . . Highest Corruption 59 | . . . . . 5 8 21 59 Average Corruption 8 | . . . . . 2 5 10 31 Corruption Purged . | . . . . . . . . . Corruption Blocked . | . . . . . . . . . Effects 183 | . . . . . 37 52 64 30 Message Errors 41 | . . . . . 12 13 9 7 Matter Fused 55 | . . . . . 8 14 26 7 Heat Flow Errors 20 | . . . . . 6 6 7 1 Energy Discharges 18 | . . . . . 4 5 5 4 Parts Rejected 2 | . . . . . 1 . 1 . Parts Fused 1 | . . . . . . . . 1 Data Loss (minor) 17 | . . . . . 2 6 6 3 Data Loss (major) 7 | . . . . . 2 1 3 1 Misfires 6 | . . . . . . 3 2 1 Alerts 5 | . . . . . . 2 3 . Misdirections 3 | . . . . . . . 1 2 Weapon Failures 8 | . . . . . 2 2 1 3 Overload Shots . | . . . . . . . . . Overflow Damage 1345 | . 51 . 107 . 380 13 643 151 Projectiles 95 | . . . . . 45 13 24 13 Explosions 268 | . . . . . 213 . . 55 Melee 982 | . 51 . 107 . 122 . 619 83 Knockbacks 35 | . . 3 . . 6 10 13 3 Impact 5 | . . . . . . . 4 1 Kinetic 27 | . . 3 . . 6 9 8 1 Secondary 3 | . . . . . . 1 1 1 Self-Inflicted Damage 133 | . . 54 . . . . . 79 Shots 5 | . . 2 . . . . . 3 Rammed 3 | . 1 . 1 . 1 . . . Targets Rammed 5 | . 1 . 1 . 1 2 . . Kicked 2 | . . . . . . 2 . . Crushed . | . . . . . . . . . Highest Temperature 426 | . 395 . 10 . 277 426 230 207 Average Temperature 84 | . 95 . 5 . 65 99 51 72 Received Heat Transfer 2176 | . 297 126 6 . 155 698 345 549 Effects 8 | . 2 . . . 2 4 . . Shutdowns 2 | . 1 . . . . 1 . . Energy Bleed 2 | . 1 . . . . 1 . . Interference 4 | . . . . . 2 2 . . Siege Activations . | . . . . . . . . . Martial Activations . | . . . . . . . . . Shielding Activations . | . . . . . . . . . Robots Disrupted . | . . . . . . . . . Combat Hostiles . | . . . . . . . . . Robots Corrupted 7 | . 1 . . . . . 4 2 Combat Hostiles 1 | . . . . . . . . 1 Parts Fried 9 | . 1 . . . . . 6 2 Impact Corruptions 21 | . 2 . . . . . 16 3 Robots Melted 2 | . . . . . . . 1 1 Combat Hostiles 2 | . . . . . . . 1 1 Parts Melted 9 | . . . . . . . 1 8 Heat Transferred 2713 | . 370 25 . . 137 . 670 1511 Parts Sabotaged . | . . . . . . . . . Parts Stolen . | . . . . . . . . . Parts Stripped . | . . . . . . . . . Power Chain Reactions 4 | . 1 . . . . . . 3 Alert | -11 -10 -10 -9 -9 -6 -6 -5 -4 ------- Run | Yrd Mat Sub Rec Scr Fac Ext Fac Fac Maximum Alert Level 3 | . . . 1 . 2 3 1 1 Low Security (%) 65 | 100 100 . 75 . 62 26 56 98 Level 1 23 | . . . 24 . 7 50 43 1 Level 2 10 | . . . . . 30 21 . . Level 3 . | . . . . . . 1 . . Level 4 . | . . . . . . . . . Level 5 . | . . . . . . . . . High Security . | . . . . . . . . . Max Security . | . . . . . . . . . Peak Influence 754 | 5 152 . 255 . 536 754 367 217 Initial 367 | . . . 11 . . 261 367 94 Average 172 | . 32 . 105 . 222 295 194 113 Influence Increases 5678 | 5 343 154 783 . 1366 1437 811 779 Destroy 0b10 Robot/C 2400 | . 180 100 260 . 440 620 460 340 Destroy 0b10 Robot/NC 320 | 5 40 . 65 . 70 65 60 15 Destroy Leader 470 | . 58 . . . 154 104 104 50 Allied During Kill 635 | . . 9 139 . 164 284 . 39 Successful Hack 181 | . 30 . 57 . 33 35 26 . Select Force Hacks 240 | . . . 240 . . . . . Disable Machine 450 | . 30 . . . 315 60 15 30 Destroy Structure 457 | . 5 . 22 . 160 74 86 110 Partial Spotted 45 | . . . . . . . . 45 Lose Combat Pursuer 480 | . . 45 . . 30 195 60 150 Influence Decreases 5658 | 5 343 130 587 220 832 1220 1368 953 Entered New Map 990 | . . . 13 220 . 273 384 100 Time Decay 3129 | 5 333 41 574 . 502 607 624 443 Lost Part 670 | . 10 . . . 20 120 190 330 Lost Ally 719 | . . 89 . . 310 220 20 80 Purge Threat 150 | . . . . . . . 150 . Squads Dispatched 41 | . 2 . . . 12 5 9 13 Investigation 11 | . 2 . . . 3 1 . 5 Extermination 13 | . . . . . 5 . 5 3 Reinforcement 11 | . . . . . 1 2 4 4 Assault 2 | . . . . . . 2 . . Garrison 4 | . . . . . 3 . . 1 Intercept . | . . . . . . . . . Searches Triggered . | . . . . . . . . . Construction Impeded 4 | . . . . . . 1 . 3 Haulers Reinforced 3 | . . . . . . . 3 . Active Scanning Responses . | . . . . . . . . . Cargo Convoy Interrupts 1 | . . . . . 1 . . . Stealth | -11 -10 -10 -9 -9 -6 -6 -5 -4 --------- Run | Yrd Mat Sub Rec Scr Fac Ext Fac Fac Distress Signals 10 | . 4 . 1 . 2 2 1 . Communications Jammed . | . . . . . . . . . Distress Signals . | . . . . . . . . . Times Spotted 201 | . 16 23 8 . 23 53 44 34 Peak Tracking Total 9 | . 4 3 3 . 4 9 8 6 Tactical Retreats 18 | . . 1 . . 2 5 4 6 Traps | -11 -10 -10 -9 -9 -6 -6 -5 -4 ------- Run | Yrd Mat Sub Rec Scr Fac Ext Fac Fac Traps Triggered 11 | . 1 3 . . . 2 4 1 Indirectly . | . . . . . . . . . Trap Hack Attempts . | . . . . . . . . . Triggered . | . . . . . . . . . Disarmed . | . . . . . . . . . Reprogrammed 4 | . . . . . . 4 . . Reused . | . . . . . . . . . Traps Extracted . | . . . . . . . . . Installed . | . . . . . . . . . Triggered . | . . . . . . . . . Machines | -11 -10 -10 -9 -9 -6 -6 -5 -4 ---------- Run | Yrd Mat Sub Rec Scr Fac Ext Fac Fac Machines Disabled 35 | . 2 3 . . 21 6 1 2 Max in Single Turn 4 | . 1 1 . . 4 2 1 1 Garrison Access 2 | . . . . . 1 . 1 . Energy Cycler 1 | . . . . . . 1 . . Machines Repaired 1 | . . . . . . . 1 . Machines Dismantled . | . . . . . . . . . Machines Sabotaged . | . . . . . . . . . Overloaded Fab Kills . | . . . . . . . . . Hacking | -11 -10 -10 -9 -9 -6 -6 -5 -4 --------- Run | Yrd Mat Sub Rec Scr Fac Ext Fac Fac Machines Accessed 78 | . 10 4 14 9 10 15 10 6 Terminals 39 | . 7 . 6 . 4 13 6 3 Fabricators 3 | . . . . . 1 . 2 . Repair Stations 4 | . 1 . . . 1 1 1 . Recycling Units 17 | . 2 . 8 . 3 1 . 3 Scanalyzers . | . . . . . . . . . Garrison Access 2 | . . . . . 1 . 1 . Total Hacks 227 | . 36 16 23 39 27 35 34 17 Successful 154 | . 17 16 17 39 16 16 20 13 Failed 73 | . 19 . 6 . 11 19 14 4 Catastrophic 7 | . 1 . . . 1 4 . 1 Database Lockouts . | . . . . . . . . . Manual 97 | . 22 1 20 . 18 7 17 12 Terminals 118 | . 24 . 15 . 13 32 23 11 Fabricators 6 | . . . . . 2 . 4 . Repair Stations 14 | . 4 . . . 4 2 4 . Recycling Units 29 | . 8 . 8 . 6 1 . 6 Scanalyzers . | . . . . . . . . . Garrison Access 5 | . . . . . 2 . 3 . Terminal Hacks 99 | . 7 16 9 39 2 13 8 5 Record 47 | . . 13 . 34 . . . . Robot Analysis 9 | . 2 . 2 5 . . . . Prototype ID Bank 3 | . 1 . . . . 1 1 . Open Door 9 | . . 1 . . . 8 . . Open DSF 2 | . . . . . . . 1 1 Branch Access Points 3 | . . . 1 . 1 . . 1 Recycling Unit Index 2 | . . . 1 . . . 1 . Alert Level 8 | . 1 . 1 . 1 1 3 1 Unreport Threat 1 | . . . . . . . 1 . Locate Traps 6 | . 2 . 1 . . 1 . 2 Reprogram Traps 1 | . . . . . . 1 . . Recall Extermination 1 | . . . . . . . 1 . Hauler Manifests 1 | . . . 1 . . . . . Zone Layout 4 | . 1 . 2 . . 1 . . Proto ID Catalog 1 | . . 1 . . . . . . Release Object 1 | . . 1 . . . . . . Fabricator Hacks 4 | . . . . . 1 . 3 . Network Status 3 | . . . . . 1 . 2 . Build 1 | . . . . . . . 1 . Repair Station Hacks 11 | . 4 . . . 3 2 2 . Scan Component 6 | . 2 . . . 2 1 1 . Repair 5 | . 2 . . . 1 1 1 . Recycling Unit Hacks 3 | . 1 . . . . . . 2 Report Inventory 2 | . 1 . . . . . . 1 Retrieve Matter 1 | . . . . . . . . 1 Scanalyzer . | . . . . . . . . . Garrison Access Hacks 2 | . . . . . 1 . 1 . Seal Access 2 | . . . . . 1 . 1 . Unauthorized Hacks 35 | . 5 . 8 . 9 1 6 6 Terminals 14 | . 5 . . . 3 . 4 2 Assimilate 1 | . . . . . . . 1 . Botnet 11 | . 4 . . . 2 . 3 2 Operators 2 | . 1 . . . 1 . . . Fabricators 2 | . . . . . 1 . 1 . Haulers 2 | . . . . . 1 . 1 . Repair Stations . | . . . . . . . . . Recycling Units 17 | . . . 8 . 4 1 . 4 Recyclers 2 | . . . . . 1 . . 1 Tunnel 8 | . . . 8 . . . . . Fedlink 6 | . . . . . 3 1 . 2 Scrapoids 1 | . . . . . . . . 1 Scanalyzers . | . . . . . . . . . Garrison Access 2 | . . . . . 1 . 1 . Watchers 2 | . . . . . 1 . 1 . Data Cores Recovered 1 | . . . . . . . . 1 Used 1 | . . . . . . . . 1 Hacking Detections 39 | . 9 . 6 . 7 7 6 4 Full Trace Events 4 | . 2 . 1 . . . . 1 Feedback Events . | . . . . . . . . . Feedback Blocked . | . . . . . . . . . Robot Schematics Acquired . | . . . . . . . . . Robots Built 2 | . . . . . . . 2 . Authchips . | . . . . . . . . . Time 152 | . . . . . . . 152 . Total Robot Build Rating 10 | . . . . . . . 10 . Part Schematics Acquired . | . . . . . . . . . Parts Built . | . . . . . . . . . Authchips . | . . . . . . . . . Time . | . . . . . . . . . Total Part Build Rating . | . . . . . . . . . Parts Repaired 5 | . 2 . . . 1 1 1 . Time 177 | . 52 . . . 25 50 50 . Parts Recycled . | . . . . . . . . . Recycled Matter . | . . . . . . . . . Retrieved Matter . | . . . . . . . . . Retrieved Components . | . . . . . . . . . Parts Scanalyzed . | . . . . . . . . . Part Schematics Acquired . | . . . . . . . . . Parts Damaged . | . . . . . . . . . Bothacking | -11 -10 -10 -9 -9 -6 -6 -5 -4 ------------ Run | Yrd Mat Sub Rec Scr Fac Ext Fac Fac Used RIF Installer . | . . . . . . . . . Robots Hacked . | . . . . . . . . . Non-combat . | . . . . . . . . . Combat . | . . . . . . . . . Robot Hacks Applied . | . . . . . . . . . Relay Couplers Released 4 | . . . . . 3 . 1 . Machine Destruction 1 | . . . . . . . 1 . Programmers 3 | . . . . . 3 . . . Fabnet Peak Effective % . | . . . . . . . . . Robots Rewired 25 | . . . 21 . . 4 . . Allies Hacked 2 | . . . . . 2 . . . Hacks Repelled . | . . . . . . . . . Allies | -11 -10 -10 -9 -9 -6 -6 -5 -4 -------- Run | Yrd Mat Sub Rec Scr Fac Ext Fac Fac Total Allies 60 | . . 12 21 . 1 18 3 5 Largest Group 25 | . . 6 25 23 20 11 2 5 Highest-Rated Group 456 | . . 115 407 384 331 456 40 235 Highest-Rated Ally 159 | . . 20 27 27 36 159 26 47 Total Orders . | . . . . . . . . . Ally Attacks 329 | . . 48 37 . 69 131 . 44 Total Damage 8754 | . . 718 1445 . 1601 3860 . 1130 Kills 59 | . . 5 17 . 10 23 . 4 Allies Corrupted 1 | . . . . . . 1 . . Allies Melted . | . . . . . . . . . Intel | -11 -10 -10 -9 -9 -6 -6 -5 -4 ------- Run | Yrd Mat Sub Rec Scr Fac Ext Fac Fac Active Infowar (turns) 6811 | 51 669 . . . 2367 836 1780 1108 Optics 2888 | . . . . . . . 1780 1108 Sensors 1490 | . . . . . 567 706 . 217 Structural 684 | . 554 . . . . 130 . . Seismic 2173 | 51 115 . . . 1800 . . 207 Jamming 2 | . . . . . . . . 2 Robot Analysis Total 9 | . 2 . 2 5 . . . . Derelict Logs Recovered 3 | . . 1 . 2 . . . . Drone Launches . | . . . . . . . . . Drone Recoveries . | . . . . . . . . . Exploration | -11 -10 -10 -9 -9 -6 -6 -5 -4 ------------- Run | Yrd Mat Sub Rec Scr Fac Ext Fac Fac Turns Passed 23533 | 132 1322 5786 2194 6285 2557 1969 2180 1108 Spaces Moved 13152 | 73 601 2970 1145 3109 1481 1272 1422 1079 Core 224 | 12 . 126 1 13 . . 1 71 Treads 8169 | 61 601 2844 1144 1864 1480 175 . . Legs 2312 | . . . . . . 1097 1078 137 Wheels 1340 | . . . . 1232 1 . 18 89 Hover 1107 | . . . . . . . 325 782 Flight . | . . . . . . . . . Fastest Speed 33 | 50 160 160 160 70 140 110 36 33 Average Speed 145 | 141 160 176 160 167 142 116 106 58 Slowest Speed 3450 | 160 160 550 550 3450 180 200 900 500 Overloaded Moves . | . . . . . . . . . Propulsion Burnouts . | . . . . . . . . . Robots Hopped . | . . . . . . . . . Potential Cave-ins 3 | . . . . . . . . 3 Cave-ins Triggered . | . . . . . . . . . Exploration Rate (%) 57 | 5 67 89 99 95 28 88 31 17 Regions Visited 8 Branch Regions 4 Pre-discovered Areas 11 | . . . 8 2 1 . . . Known Exits Taken 2 | . . . . . 1 . 1 . Unknown Exits Taken 6 | 1 1 1 1 1 . 1 . . Scrap Searched 7 | . . 5 . 2 . . . . Spaces Dug 165 | . 1 77 . . 26 1 30 30 Terrain Destroyed 612 | . 4 294 . . 132 88 43 51 Melee 107 | . 1 30 . . 22 1 28 25 Projectile 149 | . . 19 . . 19 87 15 9 AOE 356 | . 3 245 . . 91 . . 17 Terrain Rammed . | . . . . . . . . . Walls Destroyed . | . . . . . . . . . Machines Disabled . | . . . . . . . . . Actions | -11 -10 -10 -9 -9 -6 -6 -5 -4 --------- Run | Yrd Mat Sub Rec Scr Fac Ext Fac Fac Total 16456 | 90 802 3262 1490 4195 1769 1613 1818 1417 Wait 1825 | 1 80 62 77 1037 98 176 137 157 Move 13144 | 72 600 2969 1144 3108 1480 1271 1421 1079 Hop . | . . . . . . . . . Pick Up 134 | 5 15 14 2 32 16 17 22 11 Fast Attach 72 | 7 3 1 . 2 7 9 17 26 Attach 58 | . . 3 . 1 15 7 16 16 Detach 14 | . . 1 . 2 3 . 4 4 Swap 117 | 1 11 21 4 2 19 9 31 19 Drop 106 | . 13 14 5 10 25 10 19 10 Fire 499 | 4 74 94 6 . 70 91 93 67 Melee 206 | . 5 82 6 . 35 1 49 28 Ram . | . . . . . . . . . Kick 2 | . . . . . . 2 . . Crush 3 | . 1 . 1 . 1 . . . Escape Stasis 5 | . . . . . . . 5 . Rewire 266 | . . . 245 1 . 20 . . Trap . | . . . . . . . . . Miscellaneous 5 | . . 1 . . . . 4 . Route ------- -11/Scrapyard -10/Materials (discovered 4 exits: [*Mat x2] / [*Min] / *Sub) -10/Subcaves (discovered 3 exits: [*Mat x2] / *Rec) -9/Recycling (discovered 2 exits: [*Fac] / *Scr) -9/Scraptown (discovered 2 exits: *Fac x2) -6/Factory (discovered 4 exits: Low x2 / *Ext x2) -6/Extension (discovered 2 exits: *Fac / [*Cet]) -5/Factory (discovered 3 exits: *Fac x2 / *Upp) -4/Factory (discovered 3 exits: Upp x2 / Arm) History --------- Turn | Location | Event 7 | -11/Scrapyard | Discovered new exit (range 15) 133 | -11/Scrapyard | Entered Materials 305 | -10/Materials | Build established: Mutant 422 | -10/Materials | Discovered new exit (range 15) 510 | -10/Materials | Discovered new exit (range 9) 637 | -10/Materials | Discovered new exit (range 12) 680 | -10/Materials | Discovered new exit (range 15) 933 | -10/Materials | Derelicts attacked the area 1188 | -10/Materials | Repaired Lgt. Treads 1215 | -10/Materials | Repaired Assault Rifle 1455 | -10/Materials | Entered Subcaves 1456 | -10/Subcaves | Approached by a straggling Scientist 1535 | -10/Subcaves | A swath of the cavern ceiling suddenly collapsed 1654 | -10/Subcaves | Visited Clippyterm 1659 | -10/Subcaves | Learned Factory fabricator intel 1659 | -10/Subcaves | Learned Factory trap positions 1847 | -10/Subcaves | Discovered new exit (range 13) 1938 | -10/Subcaves | Learned 8 Materials zone layouts 2395 | -10/Subcaves | Ambushed by Subdweller buried in earth 2468 | -10/Subcaves | Released subatomizers from SUBCON Basin 2885 | -10/Subcaves | Shifting Twisted Machinery released Ripper 2892 | -10/Subcaves | Shifting Twisted Machinery released Sub. Power Source 2897 | -10/Subcaves | A swath of the cavern ceiling suddenly collapsed 2914 | -10/Subcaves | Discovered new exit (range 8) 3171 | -10/Subcaves | Ambushed by Subdweller buried in earth 3314 | -10/Subcaves | Visited 4L-MR0's lab 3345 | -10/Subcaves | Found Arachnoskeleton 3915 | -10/Subcaves | Core integrity fell below 50% 3953 | -10/Subcaves | Shifting Twisted Machinery released Flamer 3961 | -10/Subcaves | Shifting Twisted Machinery released Sub. Monowheel 4860 | -10/Subcaves | Visited triangular shrine 4870 | -10/Subcaves | Found Prototype Device 4870 | -10/Subcaves | Identified V3-11A's Pendant 4875 | -10/Subcaves | Befriended Subdweller 4935 | -10/Subcaves | A Subdweller sparked back to life 4935 | -10/Subcaves | A Subdweller sparked back to life 4940 | -10/Subcaves | Befriended Subdweller 4940 | -10/Subcaves | Core integrity fell below 20% 4945 | -10/Subcaves | Befriended Subdweller 5285 | -10/Subcaves | Befriended Subdweller 5295 | -10/Subcaves | Befriended Subdweller 5295 | -10/Subcaves | Befriended Subdweller 5569 | -10/Subcaves | Lost 6 allies 5592 | -10/Subcaves | Approached by friendly Subdweller 5606 | -10/Subcaves | Ambushed by Subdweller buried in earth 5608 | -10/Subcaves | Discovered new exit (range 14) 5610 | -10/Subcaves | Befriended Subdweller 5891 | -10/Subcaves | Approached by friendly Subdweller 6740 | -10/Subcaves | Ambushed by Subdweller buried in earth 6745 | -10/Subcaves | Befriended Subdweller 6750 | -10/Subcaves | Ambushed by Subdweller buried in earth 6754 | -10/Subcaves | Ambushed by Subdweller buried in earth 6754 | -10/Subcaves | Ambushed by Subdweller buried in earth 6755 | -10/Subcaves | Befriended Subdweller 6755 | -10/Subcaves | Befriended Subdweller 7241 | -10/Subcaves | Entered Recycling 7241 | -9/Recycling | Accompanied by 4 allies 7745 | -9/Recycling | Discovered new exit (range 15) 7796 | -9/Recycling | Build established: Commander-Mutant 7812 | -9/Recycling | Scanned before Scraplab entrance 7836 | -9/Recycling | Entered Scraplab 7849 | -9/Recycling | Discovered new exit (range 4) 9435 | -9/Recycling | Entered Scraptown 9435 | -9/Scraptown | Accompanied by 23 allies 9522 | -9/Scraptown | Heard Great Nut preacher, LISTEN AND RECITE! 9925 | -9/Scraptown | Scanned Subdweller tech in exchange for log data 9931 | -9/Scraptown | Learned location of 1 exit from Proximity Caves 9933 | -9/Scraptown | Learned Research emergency access door positions 9959 | -9/Scraptown | Discovered new exit (range 5) 10117 | -9/Scraptown | Visited Fellowship of the Rings 10200 | -9/Scraptown | Visited Cyclists 10245 | -9/Scraptown | Visited Awakened 10379 | -9/Scraptown | Delivered V3-11A's Pendant to T0-NE2 in exchange for information 10741 | -9/Scraptown | Visited Comm Corps 10849 | -9/Scraptown | Visited Cave Peace 10981 | -9/Scraptown | Visited Shadow of the Wyrm 11039 | -9/Scraptown | Visited The Evicted 11089 | -9/Scraptown | Visited UFD Registry 11089 | -9/Scraptown | Registered with UFD as "Nullflow" 11173 | -9/Scraptown | Entered Cyclist Reading Room 11180 | -9/Scraptown | Learned location of Zion (-6) 11513 | -9/Scraptown | Visited Derelict Rescue Squad 11532 | -9/Scraptown | Found DRS Beacon 11570 | -9/Scraptown | Visited Curators Association 11631 | -9/Scraptown | Visited Chapter 10 12006 | -9/Scraptown | Visited Botcube Research 12043 | -9/Scraptown | Visited Analyses Database 12107 | -9/Scraptown | Visited Scrapoid Research Area 12173 | -9/Scraptown | Visited Observation Area 12254 | -9/Scraptown | Visited Modified Component R&D 13597 | -9/Scraptown | Discovered new exit (range 3) 13650 | -9/Scraptown | Found Scrap Suit 13712 | -9/Scraptown | Visited LU-1G1's Boring Crew 15223 | -9/Scraptown | Found Botcube 15420 | -9/Scraptown | Met Optimus 15420 | -9/Scraptown | Accepted into 0bPrime 15720 | -9/Scraptown | Entered Factory 15720 | -6/Factory | Accompanied by 19 allies 15720 | -6/Factory | Evolved 8 slots: Propulsion x2, Utility x6 15721 | -6/Factory | Loaded intel: 123 trap records 15722 | -6/Factory | Loaded intel: 6 fabricator locations 15834 | -6/Factory | Botcube activated 15844 | -6/Factory | Botcube completed mutation into treaded form (unarmed). 15963 | -6/Factory | Loaded intel: 8 recycling unit locations 16026 | -6/Factory | Build established: Commander-Scrapper 16135 | -6/Factory | Lost 5 allies 16214 | -6/Factory | Spotted B-75 Beast 16234 | -6/Factory | Allies destroyed B-75 Beast 16505 | -6/Factory | Cargo convoy interrupted 16676 | -6/Factory | Identified exit to Lower Caves 16676 | -6/Factory | Identified exit to Extension 16678 | -6/Factory | Build established: Hacker-Scrapper 17551 | -6/Factory | Garrison activated, responded to threat 17659 | -6/Factory | Learned location of Protoforge (-3) 17873 | -6/Factory | Repaired Lyr. Medium Armor Plating 18277 | -6/Factory | Entered Extension 18627 | -6/Extension | Lost 3 parts (3n) 18676 | -6/Extension | Attached Arachnoskeleton, gained temporary slots: Propulsion x3 18893 | -6/Extension | Build established: Hacker-Mutant 19070 | -6/Extension | Rescued a captive Derelict 19077 | -6/Extension | Rescued a captive Derelict 19104 | -6/Extension | Rescued a captive Derelict 19277 | -6/Extension | Rescued A7 19338 | -6/Extension | Rescued a captive Derelict 19338 | -6/Extension | Rescued a captive Derelict 19356 | -6/Extension | Rescued a captive Derelict 19358 | -6/Extension | Rescued a captive Derelict 19539 | -6/Extension | Spotted B-75 Beast 19552 | -6/Extension | Disrupted transfer network 19554 | -6/Extension | Destroyed B-75 Beast 19558 | -6/Extension | Spotted B-75 Beast 19576 | -6/Extension | Allies destroyed B-75 Beast 19603 | -6/Extension | Lost 3 allies 19637 | -6/Extension | Rescued a captive Derelict 19638 | -6/Extension | Rescued a captive Derelict 19755 | -6/Extension | Discovered new exit (range 15) 19756 | -6/Extension | Discovered new exit (range 15) 19840 | -6/Extension | Rescued a captive Derelict 19841 | -6/Extension | Rescued a captive Derelict 19887 | -6/Extension | Rescued a captive Derelict 19888 | -6/Extension | Rescued a captive Derelict 20027 | -6/Extension | First assault squad dispatched 20049 | -6/Extension | Repaired Magnetic Acceleration Cannon 20092 | -6/Extension | Energy Cycler disabled 20098 | -6/Extension | Loaded intel: 1 recycling unit location 20147 | -6/Extension | Lost 4 parts (2n1u1w) 20156 | -6/Extension | Extracted ID and sensor layout for unrecognized location from A7's data core 20175 | -6/Extension | Lost 11 allies 20246 | -6/Extension | Entered Factory 20246 | -5/Factory | Evolved 2 slots: Power x1, Propulsion x1 20329 | -5/Factory | Repaired Angular Momentum Engine 20457 | -5/Factory | Identified exit to DSF 20712 | -5/Factory | Discovered new exit (range 7) 20718 | -5/Factory | Identified exit to Factory 21154 | -5/Factory | Discovered new exit (range 15) 21230 | -5/Factory | Lost 3 parts (2p1u) 21286 | -5/Factory | Identified exit to Upper Caves 21447 | -5/Factory | Fabricated R-10 Processor? 21976 | -5/Factory | System corruption reached 10% 22056 | -5/Factory | Lost 12 parts (2p5n1u4w) 22408 | -5/Factory | Core integrity fell below 50% 22419 | -5/Factory | Discovered exit to Factory (range 20) 22426 | -5/Factory | Entered another Factory area 22426 | -4/Factory | Evolved 2 slots: Propulsion x1, Utility x1 22436 | -4/Factory | Found Prototype Hackware 22436 | -4/Factory | Identified Exp. Hacking Suite 22493 | -4/Factory | Found Com. Tesla Bomb Launcher 22698 | -4/Factory | Loaded intel: 8 recycling unit locations 23000 | -4/Factory | Scrapoid reinforcements arrived 23016 | -4/Factory | Garrison activated, responded to threat 23030 | -4/Factory | Lost 7 parts (2p4n1w) 23077 | -4/Factory | Lost 5 allies 23145 | -4/Factory | System corruption reached 10% 23151 | -4/Factory | Core integrity fell below 50% 23185 | -4/Factory | Lost 16 parts (4p4n4u4w) 23226 | -4/Factory | Core integrity fell below 20% 23248 | -4/Factory | System corruption reached 30% 23477 | -4/Factory | Identified exit to Upper Caves 23477 | -4/Factory | Identified exit to Armory 23534 | -4/Factory | Destroyed by P-70 Sage with Tesla Rifle Last Messages --------------- 23507_ System corrupted: Energy discharge (-107). 23512_ System corrupted: Cld. Plasma Rifle failed to cycle. 23512_ Flexi-carbon Leg destroyed. 23513_ Lgt. Nuclear Core destroyed. 23517_ System corrupted: Cld. Plasma Rifle failed to cycle. 23522_ System corrupted: Energy discharge (-91). 23522_ Com. Wheel destroyed. 23523_ P-70 Sage heat damages Hpw. Shock Rifle. 23523_ P-70 Sage suffers critical hit (Burn). 23525_ P-70 Sage heat short circuits Mic. Fission Core. 23525_ Destroyed Antigrav System. 23526_ P-70 Sage heat damages core (-8). 23527_ P-70 Sage heat damages core (-14). 23527_ Tesla Rifle melted. 23527_ Broken Mic. Fission Core melted. 23527_ Antigrav System melted. 23527_ Imp. Remote Datajack melted. 23527_ Imp. Heat Sink melted. 23527_ Hpw. Shock Rifle melted. [Achievement: I Think I Know What's Going On] Map ----- +----------------------------------------------------+ | ?????# #???????????????????? ## | | ?????# #????????????????????????# T# | | ?????#####+#####????????????????????????# # | | ?????????#%#????????????????????????????# ## | | ?????????# #????????#####???????????????# ##### #? | | ????????## #????????#! ################# #???# #? | | ????????#" #???????## ##### #? | | ????????## #???????#" ####################" " #? | | ?????????# ####????#"# ##?????????# ### ## | | ?????????# ###"####### ####???????# # | | ?????????# ##?# !! # #####??????# # | | ?????????# #??# != + ##??????# """ / | | ?????????# #??# # p ##??????#""" """ # | | ?????????# #??# # ##??????#"Y """ # | | ???????### #### # % ##??????#""" ## # | | ######## ## # ####????# ## # | | ######+## ## #????#######"#### + | | # #???????????# #??# # | | ######+#####%#"########????# #??# # | | ######## ## T # ## ####?# #??# # | | ???????###+#### # ## " " " ##"###"#### # | | ???????# # ! ! # ## " " " # # | | ???????# # # ## " " " # # | | ???????# ! !# """ """ # ## " " " # # | | ???????# ! # """ """ # ## " " " # ######## ## | | ???????# # """ """ #@## " " " # #??????# #? | | ???????# # # #" " " " # ##?????# #? | | ???????################## ## " " " # ########+#? | | ???????????????####### ?# ## " " " # # #? | | ???????????????# ?# ## # # """ =#? | | ???????????????#""" # ######+### # "Y #? | | ???????????????#""" # ##### + """ | #? | | ???????????????#""" + ^!! # #? | | ???????????????# = # ^ !! # """ #? | | ???????????????#""" # !!/ ^! ## """ #? | | ???????????????#""" ?# !!/^ ! ## """ ! #? | | ???????????????#""" ?#= !!/ ## #? | | ???????????????# ??# """" ###########? | | #######????????#######??# ! """" #??????????? | | ################### ^ """" #####??????# | | """" ######## | | ^ """" | | = """" ######## | | """" #?????## | | % #??????? | | #??????? | | u #??????? | | ### #####################"#######??????? | | #+####### # #?????????###????????????? | | # # #????????????????????????? | +----------------------------------------------------+ Best States ------------- Heat Dissipation 74 Energy Generation 35 Energy Capacity 515 Matter Stores 300 Matter Capacity 300 Sight Range 22 Robot Scan Range 16 Terrain Scan Density 10 Jamming Range 16 Additional Mass Support 9 Armor Coverage 225 Resistance: KI 20 Resistance: EM 25 Weapon Cycling 20 Phase Shifting 5 Evasion (%) 65 Targeting Accuracy 5 Recoil Reduction 4 Offensive Hacking 40 Defensive Hacking 24 Item Schematics ----------------- None Robot Schematics ------------------ None Fabricated ------------ R-10 Processor | x2 | -5/Factory | Preloaded Repaired ---------- Lgt. Treads | 25% | -10/Materials Assault Rifle | 20% | -10/Materials Lyr. Medium Armor Plating | 31% | -6/Factory Magnetic Acceleration Cannon | 10% | -6/Extension Angular Momentum Engine | 10% | -5/Factory Alien Tech Used ----------------- None Achievements -------------- I Think I Know What's Going On Packrat Tank Z1$+NX3F=JRE3_ZNQR Challenges ------------ None Game ------ Seed WaveSalvageWand Manual? 0 Play Time 03:08:57 Cumulative 119.2 hours Start 2025.06.08 @ 11:37:48 End 2025.06.08 @ 18:16:05 Sessions 7 Manual Loads 0 Difficulty Rogue Special Mode None Game No. 68 Rogue 64 Adventurer 4 Explorer 0 Win Type - Total 2 Types 1/0/0/1/0/0/0/0/0/0 Lore% 51 Gallery% 49 Achievement% 45 Wizard Run 0 Options --------- Layout 0 ASCII 0 Keyboard 1 Movement Vi Keybinds 0 Fullscreen 1 Font 24/Crisp Map View 76x50 Zoom Use 0% Tactical HUD 1 Map Filters NONE Filters NONE Steam 1 RUN: b6106c96-88cc-4606-9556-3b7ba28e7bc7